Workbook

Sheet Лист1
A1: Школа | C1: МБОУ "Школа №9" | G1: Утвердил: | H1: должность | I1: Директор
A2: Форма ежедневного меню приготавливаемых блюд | H2: фамилия | I2: Г.А. Иванова
A3: Возрастная категория | F3: 7-11 лет | H3: дата | I3: 1 | J3: Февраль | K3: 2025
I4: день | J4: месяц | K4: год
A5: Неделя | B5: День недели | C5: Прием пищи | D5: Раздел меню | E5: № рецептуры | F5: Блюда | G5: Вес блюда, г | H5: Цена | I5: Калорийность | J5: Белки | K5: Жиры | L5: Углеводы
A6: 1 | B6: 1 | C6: Завтрак | D6: гор.блюдо | E6: ТТК от 09.07.2023 | F6: Ёжики мясные с рисом в соусе для запекания | G6: 90 | I6: 220 | J6: 12.683 | K6: 13.909 | L6: 10.985
D7: гор.блюдо | E7: № 304/2015г Дели | F7: Каша гречневая вязкая | G7: 150 | I7: 143 | J7: 3.462 | K7: 4.634 | L7: 21.786
D8: гор.напиток | E8: ТТК от 2021г | F8: Чай с сахаром | G8: 208 | I8: 32 | J8: 0.021 | K8: 0.005 | L8: 7.989
D9: хлеб | F9: Хлеб ржано-пшеничный/ Хлеб пшеничный | G9: 40 | I9: 91 | J9: 2.520 | K9: 0.360 | L9: 18.840
D10: фрукты | E10: № 338 | F10: Плоды и ягоды свежие (яблоки) | G10: 90 | I10: 42 | J10: 0.360 | K10: 0.360 | L10: 8.820
D13: итого | G13: =SUM(G6:G12) -> 578 | I13: 528 | J13: =SUM(J6:J12) -> 19.046 | K13: 19.268 | L13: 68.42
A14: =A6 -> 1 | B14: =B6 -> 1 | C14: Обед | D14: закуска
D15: 1 блюдо
D16: 2 блюдо
D17: гарнир
D18: напиток
D19: хлеб бел.
D20: хлеб черн.
D23: итого | G23: =SUM(G14:G22) -> 0 | H23: =SUM(H14:H22) -> 0 | I23: 0 | J23: 0 | K23: 0 | L23: 0
A24: =A6 -> 1 | B24: =B6 -> 1 | C24: Итого за день: | G24: =G13+G23 -> 578 | H24: =H13+H23 -> 0 | I24: 528 | J24: 19.046 | K24: 19.268 | L24: 68.42
A25: 1 | B25: 2 | C25: Завтрак | D25: гор.блюдо | E25: ТТК №2738 от 7.12.2023 | F25: Жаркое из филе куриных грудок | G25: 200 | I25: 341 | J25: 12.890 | K25: 15.910 | L25: 35.790
D26: гор.блюдо
D27: гор.напиток | E27: ТТК от 2021г | F27: Чай с сахаром | G27: 208 | I27: 32 | J27: 0.021 | K27: 0.005 | L27: 7.989
D28: хлеб | F28: Хлеб ржано-пшеничный/ Хлеб пшеничный | G28: 40 | I28: 91 | J28: 2.52 | K28: 0.36 | L28: 18.84
D30: фрукты
E31: № 45/2015г Дели | F31: Салат из белокачанной капусты | G31: 60 | I31: 54 | J31: 0.931 | K31: 3.051 | L31: 5.645
D33: итого | G33: =SUM(G25:G32) -> 508 | I33: =SUM(I25:I31) -> 518 | J33: 16.362 | K33: 19.326 | L33: =SUM(L25:L32) -> 68.264
A34: =A25 -> 1 | B34: =B25 -> 2 | C34: Обед | D34: закуска
D35: 1 блюдо
D36: 2 блюдо
D37: гарнир
D38: напиток
D39: хлеб бел.
D40: хлеб черн.
D43: итого | G43: =SUM(G34:G42) -> 0 | H43: =SUM(H34:H42) -> 0 | I43: 0 | J43: 0 | K43: 0 | L43: 0
A44: =A25 -> 1 | B44: =B25 -> 2 | C44: Итого за день: | G44: =G33+G43 -> 508 | H44: =H33+H43 -> 0 | I44: 518 | J44: 16.362 | K44: 19.326 | L44: 68.264
A45: 1 | B45: 3 | C45: Завтрак | D45: гор.блюдо | E45: ТТК № 2213 от 02.12.2022 | F45: Чикен | G45: 90 | I45: 176 | J45: 11.103 | K45: 12.108 | L45: 11.093
D46: гор.блюдо | E46: №202/2015г Дели | F46: Макаронные изделия отварные | G46: 150 | I46: 209 | J46: 5.044 | K46: 5.068 | L46: 35.906
D47: гор.напиток | E47: ТТК 2021г | F47: Напиток из урюка | G47: 200 | I47: 32 | J47: 0.02 | L47: 7.99
D48: хлеб | F48: Хлеб ржано-пшеничный/ Хлеб пшеничный | G48: 40 | I48: 91 | J48: 2.52 | K48: 0.36 | L48: 18.84
D49: фрукты | E49: № 338 | F49: Плоды и ягоды свежие (яблоки) | G49: 90 | I49: 42 | J49: 0.360 | K49: 0.360 | L49: 8.820
D52: итого | G52: =SUM(G45:G51) -> 570 | I52: =SUM(I45:I51) -> 550 | J52: 19.047 | K52: 17.896 | L52: 82.649
A53: =A45 -> 1 | B53: =B45 -> 3 | C53: Обед | D53: закуска
D54: 1 блюдо
D55: 2 блюдо
D56: гарнир
D57: напиток
D58: хлеб бел.
D59: хлеб черн.
D62: итого | G62: =SUM(G53:G61) -> 0 | H62: =SUM(H53:H61) -> 0 | I62: 0 | J62: 0 | K62: 0 | L62: 0
A63: =A45 -> 1 | B63: =B45 -> 3 | C63: Итого за день: | G63: =G52+G62 -> 570 | H63: =H52+H62 -> 0 | I63: 550 | J63: 19.047 | K63: =K52+K62 -> 17.896 | L63: =L52+L62 -> 82.649
A64: 1 | B64: 4 | C64: Завтрак | D64: гор.блюдо | E64: ТТК № 2737 от 07.12.2023 | F64: Плов с говядиной | G64: 190 | I64: 430 | J64: 15.44 | K64: 19.29 | L64: 51.2
D65: гор.блюдо
D66: гор.напиток | E66: ТТК от 2021г | F66: Чай с сахаром | G66: 208 | I66: 32 | J66: 0.021 | K66: 0.005 | L66: 7.989
D67: хлеб | F67: Хлеб ржано-пшеничный/ Хлеб пшеничный | G67: 42 | I67: 96 | J67: 2.672 | K67: 0.376 | L67: 19.824
D68: фрукты
E69: ТТК | F69: Салат из моркови | G69: 60 | I69: 14 | J69: 2.06 | K69: 0.12 | L69: 2.28
D71: итого | G71: =SUM(G64:G70) -> 500 | I71: =SUM(I64:I70) -> 572 | J71: =SUM(J64:J70) -> 20.193 | K71: 19.791 | L71: =SUM(L64:L69) -> 81.293
A72: =A64 -> 1 | B72: =B64 -> 4 | C72: Обед | D72: закуска
D73: 1 блюдо
D74: 2 блюдо
D75: гарнир
D76: напиток
D77: хлеб бел.
D78: хлеб черн.
D81: итого | G81: =SUM(G72:G80) -> 0 | H81: =SUM(H72:H80) -> 0 | I81: 0 | J81: 0 | K81: 0 | L81: 0
A82: =A64 -> 1 | B82: =B64 -> 4 | C82: Итого за день: | G82: =G71+G81 -> 500 | H82: =H71+H81 -> 0 | I82: 572 | J82: 20.193 | K82: 19.791 | L82: 81.293
A83: 1 | B83: 5 | C83: Завтрак | D83: гор.блюдо | E83: ТТК №1515 от 28.07.2021 | F83: Биточки рыбные из минтая | G83: 90 | I83: 238 | J83: 12.06 | K83: 15.12 | L83: 16.92
D84: гор.блюдо | E84: №312/2015 Дели | F84: Пюре картофельное | G84: 150 | I84: 144 | J84: 3.437 | K84: 4.556 | L84: 21.451
D85: гор.напиток | E85: ТТК от 2021 | F85: Компот из свежих плодов (яблоки) | G85: 200 | I85: 49 | J85: 0.08 | K85: 0.08 | L85: 11.94
D86: хлеб | F86: Хлеб ржано-пшеничный/ Хлеб пшеничный | G86: 40 | I86: 91 | J86: 2.52 | K86: 0.36 | L86: 18.84
D87: фрукты
E88: №47/2015 Дели | F88: Салат из квашеной капусты | G88: 60 | I88: 7 | J88: 0.42 | K88: 0.06 | L88: 1.14
D90: итого | G90: =SUM(G83:G89) -> 540 | I90: =SUM(I83:I89) -> 529 | J90: 18.517 | K90: 20.176 | L90: 70.291
A91: =A83 -> 1 | B91: =B83 -> 5 | C91: Обед | D91: закуска
D92: 1 блюдо
D93: 2 блюдо
D94: гарнир
D95: напиток
D96: хлеб бел.
D97: хлеб черн.
D100: итого | G100: =SUM(G91:G99) -> 0 | H100: =SUM(H91:H99) -> 0 | I100: 0 | J100: 0 | K100: 0 | L100: 0
A101: =A83 -> 1 | B101: =B83 -> 5 | C101: Итого за день: | G101: =G90+G100 -> 540 | H101: 0 | I101: 529 | J101: 18.517 | K101: 20.176 | L101: 70.291
A102: 1 | B102: 6 | C102: Завтрак | D102: гор.блюдо | E102: ТТК 2015г | F102: Пельмени "Для умников и умниц" отварные с маслом | G102: 155 | I102: 344 | J102: 17.047 | K102: 15.236 | L102: 36.838
D104: гор.напиток | E104: ТТК от 2021г | F104: Чай с сахаром, лимоном | G104: 213 | I104: 34 | J104: 0.066 | K104: 0.01 | L104: 8.139
D105: хлеб | F105: Хлеб ржано-пшеничный/ Хлеб пшеничный | G105: 42 | I105: 96 | J105: 2.672 | K105: 0.376 | L105: 19.824
D106: фрукты | E106: № 338 | F106: Плоды и ягоды свежие (яблоки) | G106: 90 | I106: 42 | J106: 0.360 | K106: 0.360 | L106: 8.820
D109: итого | G109: =SUM(G102:G108) -> 500 | I109: =SUM(I102:I108) -> 516 | J109: 20.145 | K109: 15.982 | L109: 73.621
A110: =A102 -> 1 | B110: 6 | C110: Обед | D110: закуска
D111: 1 блюдо
D112: 2 блюдо
D113: гарнир
D114: напиток
D115: хлеб бел.
D116: хлеб черн.
D119: итого | G119: =SUM(G110:G118) -> 0 | H119: =SUM(H110:H118) -> 0 | I119: 0 | J119: 0 | K119: 0 | L119: 0
A120: =A102 -> 1 | B120: =B102 -> 6 | C120: Итого за день: | G120: =G109+G119 -> 500 | H120: 0 | I120: 516 | J120: 20.145 | K120: 15.982 | L120: 73.621
A121: 2 | B121: 1 | C121: Завтрак | D121: гор.блюдо | E121: ТТК от 01.11.2022 | F121: Котлеты "Аппетитные" мясо-куриные | G121: 90 | I121: 216 | J121: 13.795 | K121: 14.749 | L121: 7.996
D122: гор.блюдо | E122: ТТК 2014г | F122: Каша рисовая вязкая | G122: 150 | I122: 142 | J122: 2.303 | K122: 4.129 | L122: 23.944
D123: гор.напиток | E123: ТТК от 2021г | F123: Чай с сахаром | G123: 208 | I123: 32 | J123: 0.021 | K123: 0.005 | L123: 7.989
D124: хлеб | F124: Хлеб ржано-пшеничный/ Хлеб пшеничный | G124: 40 | I124: 91 | J124: 2.520 | K124: 0.360 | L124: 18.840
D125: фрукты | E125: № 338 | F125: Плоды и ягоды свежие (яблоки) | G125: 90 | I125: 42 | J125: 0.360 | K125: 0.360 | L125: 8.820
D128: итого | G128: =SUM(G121:G127) -> 578 | I128: =SUM(I121:I125) -> 523 | J128: =SUM(J121:J127) -> 18.999 | K128: 19.603 | L128: =SUM(L121:L125) -> 67.589
A129: =A121 -> 2 | B129: =B121 -> 1 | C129: Обед | D129: закуска
D130: 1 блюдо
D131: 2 блюдо
D132: гарнир
D133: напиток
D134: хлеб бел.
D135: хлеб черн.
D138: итого | G138: =SUM(G129:G137) -> 0 | H138: =SUM(H129:H137) -> 0 | I138: 0 | J138: 0 | K138: 0 | L138: 0
A139: =A121 -> 2 | B139: =B121 -> 1 | C139: Итого за день: | G139: =G128+G138 -> 578 | H139: =H128+H138 -> 0 | I139: 523 | J139: 18.999 | K139: 19.603 | L139: 67.589
A140: 2 | B140: 2 | C140: Завтрак | D140: гор.блюдо | E140: ТТК №2738 от 07.12.2023г2023г | F140: Жаркое по - домашнему | G140: 190 | I140: 373 | J140: 13.05 | K140: 17.93 | L140: 39.88
D142: гор.напиток | E142: ТТК от 2021г Дели | F142: Чай с сахаром | G142: 208 | I142: 32 | J142: 0.021 | K142: 0.005 | L142: 7.989
D143: хлеб | F143: Хлеб ржано-пшеничный/ Хлеб пшеничный | G143: 42 | I143: 96 | J143: 2.672 | K143: 0.376 | L143: 19.824
D144: фрукты
E145: ТТК | F145: Салат из моркови | G145: 60 | I145: 14 | J145: 2.06 | K145: 0.12 | L145: 2.28
D147: итого | G147: =SUM(G140:G146) -> 500 | I147: =SUM(I140:I146) -> 515 | J147: 17.803 | K147: 18.431 | L147: 69.973
A148: =A140 -> 2 | B148: =B140 -> 2 | C148: Обед | D148: закуска
D149: 1 блюдо
D150: 2 блюдо
D151: гарнир
D152: напиток
D153: хлеб бел.
D154: хлеб черн.
D157: итого | G157: =SUM(G148:G156) -> 0 | H157: =SUM(H148:H156) -> 0 | I157: 0 | J157: 0 | K157: 0 | L157: 0
A158: =A140 -> 2 | B158: =B140 -> 2 | C158: Итого за день: | G158: =G147+G157 -> 500 | H158: =H147+H157 -> 0 | I158: 515 | J158: 17.803 | K158: 18.431 | L158: 69.973
A159: 2 | B159: 3 | C159: Завтрак | D159: гор.блюдо | E159: ТТК от 01.11.2022 | F159: Бифштекс рубленый по-домашнему | G159: 90 | I159: 185 | J159: 10.69 | K159: 12.037 | L159: 8.367
D160: гор.блюдо | E160: № 202/2015 Дели | F160: Макаронные изделия отварные | G160: 150 | I160: 209 | J160: 5.044 | K160: 5.068 | L160: 35.906
D161: гор.напиток | E161: ТТК от 2021г | F161: Чай с сахаром | G161: 208 | I161: 32 | J161: 0.021 | K161: 0.005 | L161: 7.989
D162: хлеб | F162: Хлеб ржано-пшеничный/ Хлеб пшеничный | G162: 40 | I162: 91 | J162: 2.52 | K162: 0.36 | L162: 18.84
D163: фрукты | E163: № 338 | F163: Плоды и ягоды свежие (яблоки) | G163: 90 | I163: 42 | J163: 0.360 | K163: 0.360 | L163: 8.820
D166: итого | G166: =SUM(G159:G165) -> 578 | I166: =SUM(I159:I165) -> 559 | J166: 18.635 | K166: =SUM(K159:K165) -> 17.83 | L166: 79.922
A167: =A159 -> 2 | B167: =B159 -> 3 | C167: Обед | D167: закуска
D168: 1 блюдо
D169: 2 блюдо
D170: гарнир
D171: напиток
D172: хлеб бел.
D173: хлеб черн.
D176: итого | G176: =SUM(G167:G175) -> 0 | H176: =SUM(H167:H175) -> 0 | I176: 0 | J176: 0 | K176: 0 | L176: 0
A177: =A159 -> 2 | B177: =B159 -> 3 | C177: Итого за день: | G177: =G166+G176 -> 578 | H177: =H166+H176 -> 0 | I177: 559 | J177: 18.635 | K177: 17.83 | L177: 79.922
A178: 2 | B178: 4 | C178: Завтрак | D178: гор.блюдо | E178: ТТК 2021г Июль | F178: Плов с куриными грудками | G178: 200 | I178: 419 | J178: 15.448 | K178: 19.298 | L178: 45.883
D180: гор.напиток | E180: ТТК №2693 от 14.09.2023 | F180: Напиток из урюка | G180: 200 | I180: 32 | J180: 0.02 | L180: 7.99
D181: хлеб | F181: Хлеб ржано-пшеничный/ Хлеб пшеничный | G181: 40 | I181: 91 | J181: 2.52 | K181: 0.36 | L181: 18.84
D182: фрукты
E183: №47/2015 Дели | F183: Салат из квашеной капусты | G183: 60 | I183: 7 | J183: 0.42 | K183: 0.06 | L183: 1.14
D185: итого | G185: =G178+G179+G180+G181+G182+G183 -> 500 | I185: =I178+I179+I180+I181+I182+I183 -> 549 | J185: 18.408 | K185: 19.718 | L185: 73.853
A186: =A178 -> 2 | B186: =B178 -> 4 | C186: Обед | D186: закуска
D187: 1 блюдо
D188: 2 блюдо
D189: гарнир
D190: напиток
D191: хлеб бел.
D192: хлеб черн.
D195: итого | G195: =SUM(G186:G194) -> 0 | H195: =SUM(H186:H194) -> 0 | I195: 0 | J195: 0 | K195: 0 | L195: 0
A196: =A178 -> 2 | B196: =B178 -> 4 | C196: Итого за день: | H196: =H185+H195 -> 0
A197: 2 | B197: 5 | C197: Завтрак | D197: гор.блюдо | E197: ТТК от 2024 | F197: Ежики рыбные с рисом в томатном соусе | G197: 90 | I197: 221 | J197: 11.25 | K197: 10.16 | L197: 21.21
D198: гор.блюдо | E198: №312/2015 Дели | F198: Пюре картофельное | G198: 150 | I198: 144 | J198: 3.437 | K198: 4.556 | L198: 21.451
D199: гор.напиток | E199: ТТК 2021 | F199: Компот из свежих плодов (яблоки) | G199: 200 | I199: 49 | J199: 0.08 | K199: 0.08 | L199: 11.94
D200: хлеб | F200: Хлеб ржано-пшеничный/ Хлеб пшеничный | G200: 40 | I200: 91 | J200: 2.52 | K200: 0.36 | L200: 18.84
D201: фрукты
E202: №45/2015 Дели | F202: Салат из белокачанной капусты | G202: 60 | I202: 54 | J202: 0.931 | K202: 3.051 | L202: 5.645
D204: итого | G204: =SUM(G197:G203) -> 540 | I204: =SUM(I197:I203) -> 559 | J204: 18.218 | K204: 18.207 | L204: 79.086
A205: =A197 -> 2 | B205: =B197 -> 5 | C205: Обед | D205: закуска
D206: 1 блюдо
D207: 2 блюдо
D208: гарнир
D209: напиток
D210: хлеб бел.
D211: хлеб черн.
D214: итого | G214: =SUM(G205:G213) -> 0 | H214: =SUM(H205:H213) -> 0 | I214: 0 | J214: 0 | K214: 0 | L214: 0
A215: =A197 -> 2 | B215: =B197 -> 5 | C215: Итого за день: | G215: =G204+G214 -> 540 | H215: =H204+H214 -> 0 | I215: 559 | J215: 18.218 | K215: 18.207 | L215: 79.086
A216: 2 | B216: 6 | C216: Завтрак | D216: гор.блюдо | E216: №243/2015 Дели | F216: Сосиски отварные | G216: 100 | I216: 143 | J216: 8.7 | K216: 10.05 | L216: 4.4
D217: гор.блюдо | E217: №202/2015 Дели | F217: Макаронные изделия отварные | G217: 150 | I217: 209 | J217: 5.044 | K217: 5.068 | L217: 35.906
D218: гор.напиток | E218: ТТК от 2021г | F218: Чай с сахаром | G218: 208 | I218: 32 | J218: 0.021 | K218: 0.005 | L218: 7.989
D219: хлеб | F219: Хлеб ржано-пшеничный/ Хлеб пшеничный | G219: 40 | I219: 91 | J219: 2.52 | K219: 0.36 | L219: 18.84
D220: фрукты
E221: №70/2015 Дели | F221: Овощи натуральные соленые (огурцы) | G221: 10 | I221: 2 | J221: 0.08 | K221: 0.01 | L221: 0.503
D223: итого | G223: =SUM(G216:G222) -> 508 | I223: =SUM(I216:I222) -> 477 | J223: =SUM(J216:J222) -> 16.365 | K223: =SUM(K216:K222) -> 15.493 | L223: =SUM(L216:L222) -> 67.638
A224: =A216 -> 2 | B224: 6 | C224: Обед | D224: закуска
D225: 1 блюдо
D226: 2 блюдо
D227: гарнир
D228: напиток
D229: хлеб бел.
D230: хлеб черн.
D233: итого | G233: =SUM(G224:G232) -> 0 | H233: =SUM(H224:H232) -> 0 | I233: 0 | J233: 0 | K233: 0 | L233: 0
A234: =A216 -> 2 | B234: =B216 -> 6 | C234: Итого за день: | G234: =G223+G233 -> 508 | H234: =H223+H233 -> 0 | I234: 477 | J234: 16.365 | K234: 15.493 | L234: 67.638
